fUSD/lending_fUSD_20250622
["ID","MTS","AMOUNT","RATE_DAILY","PERIOD"]
[367047157,1750636241744,-1570.33,0.0003484,7]
[367047159,1750636241754,-604.39,0.0003484,7]
[367047161,1750636241763,-490.0,0.0003484,2]
[367047163,1750636241772,-1320.9,0.0003484,7]
[367047165,1750636241782,-2141.16109982,0.0003484,2]
[367047167,1750636241791,-315.73324361,0.0003484,7]
[367047170,1750636241801,-490.0,0.0003484,7]
[367047172,1750636241811,-490.0,0.0003484,7]
[367047174,1750636241821,-490.0,0.0003484,7]
[367047176,1750636241830,-490.0,0.0003484,7]
[367047178,1750636241840,-2235.48,0.0003484,7]
[367047180,1750636241849,-3013.29,0.0003484,7]
[367047182,1750636241858,-490.0,0.0003484,7]
[367047184,1750636241868,-490.0,0.0003484,7]
[367047186,1750636241881,-2005.74,0.00034841,7]
[367047188,1750636241892,-602.91,0.00034841,7]
[367047190,1750636241901,-695.86,0.00034841,7]
[367047192,1750636241910,-3418.4,0.00034841,7]
[367047194,1750636241921,-2079.41,0.00034841,7]
[367047196,1750636241930,-4293.19,0.00034841,7]
[367047198,1750636241939,-3222.63,0.00034841,2]
[367047200,1750636241953,-3664.46,0.00034841,7]
[367047202,1750636241963,-2175.46,0.00034841,7]
[367047204,1750636241973,-544.21,0.00034841,7]
[367047206,1750636241983,-1595.95,0.00034841,7]
[367047208,1750636241992,-778.91,0.00034841,7]
[367047210,1750636242001,-1168.79,0.00034841,7]
[367047212,1750636242010,-3413.39,0.00034841,7]
[367047214,1750636242019,-1319.02,0.00034841,7]
[367047216,1750636242029,-1683.76,0.00034841,7]
[367047218,1750636242039,-1665.92,0.00034841,7]
[367047220,1750636242048,-500.0,0.00034842,7]
[367047222,1750636242057,-3828.41,0.00034843,7]
[367047224,1750636242067,-2428.13,0.00034843,7]
[367047226,1750636242076,-2228.78,0.00034843,7]
[367047228,1750636242085,-2885.62,0.00034843,7]
[367047230,1750636242095,-490.0,0.00034843,7]
[367047232,1750636242104,-9182.38,0.00034843,7]
[367047234,1750636242113,-10742.06,0.00034843,7]
[367047236,1750636242122,-4219.53,0.00034843,7]
[367047238,1750636242132,-5916.66,0.00034843,7]
[367047240,1750636242141,-2866.9,0.00034843,7]
[367047242,1750636242152,-2709.38,0.00034843,7]
[367047244,1750636242162,-4864.93,0.00034843,7]
[367047246,1750636242171,-2285.76,0.00034843,7]
[367047248,1750636242181,-6392.71,0.00034843,7]
[367047250,1750636242190,-1912.24,0.00034843,7]
[367047252,1750636242201,-500.0,0.00034844,2]
[367047254,1750636242211,-151.0,0.00034845,7]
[367047256,1750636242220,-151.0,0.00034845,7]
[367047258,1750636242229,-151.0,0.00034845,7]
[367047260,1750636242239,-151.0,0.00034845,7]
[367047262,1750636242249,-151.0,0.00034845,7]
[367047264,1750636242259,-151.0,0.00034845,7]
[367047266,1750636242268,-151.0,0.00034845,7]
[367047268,1750636242278,-611.93617179,0.00034845,7]
[367047270,1750636242287,-490.0,0.00034845,7]
[367047272,1750636242296,-490.0,0.00034845,7]
[367047274,1750636242306,-151.74542586,0.00034845,7]
[367047276,1750636242316,-490.0,0.00034845,7]
[367047278,1750636242326,-523.78,0.00034845,7]
[367047280,1750636242335,-2139.72,0.00034845,7]
[367047282,1750636242344,-490.0,0.00034845,7]
[367047284,1750636242353,-490.0,0.00034845,7]
[367047286,1750636242362,-1275.06,0.00034845,7]
[367047288,1750636242372,-490.0,0.00034845,7]
[367047290,1750636242381,-490.0,0.00034845,7]
[367047292,1750636242391,-490.0,0.00034845,7]
[367047294,1750636242400,-228.81071643,0.00034845,7]
[367047296,1750636242410,-1654.84,0.00034845,7]
[367047298,1750636242419,-490.0,0.00034845,7]
[367047300,1750636242429,-7113.52,0.00034845,7]
[367047302,1750636242438,-490.0,0.00034845,7]
[367047305,1750636242447,-490.0,0.00034845,7]
[367047308,1750636242457,-490.0,0.00034845,7]
[367047310,1750636242466,-490.0,0.00034845,7]
[367047312,1750636242476,-490.0,0.00034845,7]
[367047314,1750636242485,-490.0,0.00034845,7]
[367047316,1750636242495,-3248.47,0.00034845,7]
[367047318,1750636242504,-500.0,0.00034845,7]
[367047320,1750636242514,-1151.0,0.00034845,7]
[367047322,1750636242523,-765.74,0.00034845,7]
[367047325,1750636242532,-746.42,0.00034845,7]
[367047328,1750636242541,-9786.13,0.00034845,7]
[367047330,1750636242550,-1392.59,0.00034845,7]
[367047333,1750636242560,-490.0,0.00034845,7]
[367047336,1750636242570,-2053.17,0.00034845,7]
[367047337,1750636242579,-1062.73,0.00034845,7]
[367047339,1750636242588,-2090.45,0.00034845,7]
[367047341,1750636242598,-490.0,0.00034845,7]
[367047344,1750636242608,-490.0,0.00034845,7]
[367047345,1750636242617,-1525.67,0.00034845,7]
[367047348,1750636242627,-992.36,0.00034845,7]
[367047350,1750636242637,-490.0,0.00034845,7]
[367047353,1750636242646,-1016.78,0.00034845,7]
[367047358,1750636242655,-1886.92,0.00034845,7]
[367047360,1750636242665,-1272.24,0.00034845,7]
[367047364,1750636242674,-490.0,0.00034845,7]
[367047366,1750636242683,-490.0,0.00034845,7]
[367047368,1750636242692,-1778.48,0.00034845,7]
[367047371,1750636242701,-2357.69,0.00034845,7]
[367047374,1750636242710,-1019.81,0.00034845,7]
[367047376,1750636242720,-2006.73,0.00034845,7]
[367047378,1750636242729,-490.0,0.00034845,7]
[367047380,1750636242738,-490.0,0.00034845,7]
[367047382,1750636242748,-880.25,0.00034845,7]
[367047384,1750636242757,-490.0,0.00034845,7]
[367047386,1750636242766,-490.0,0.00034845,7]
[367047388,1750636242776,-215.66004954,0.00034845,7]
[367047390,1750636242786,-490.0,0.00034845,7]
[367047392,1750636242795,-710.26,0.00034845,7]
[367047394,1750636242805,-18862.37,0.00034845,7]
[367047396,1750636242815,-490.0,0.00034845,7]
[367047398,1750636242824,-490.0,0.00034845,7]
[367047400,1750636242834,-559.85,0.00034845,7]
[367047402,1750636242843,-500.0,0.00034845,7]
[367047404,1750636242853,-1645.96,0.00034845,7]
[367047406,1750636242863,-1360.87,0.00034845,7]
[367047408,1750636242873,-490.0,0.00034845,7]
[367047410,1750636242884,-490.0,0.00034845,7]
[367047412,1750636242894,-5453.44,0.00034845,7]
[367047414,1750636242904,-490.0,0.00034845,7]
[367047416,1750636242915,-2167.55,0.00034845,7]
[367047418,1750636242924,-3437.59,0.00034845,7]
[367047420,1750636242933,-490.0,0.00034845,7]
[367047422,1750636242943,-490.0,0.00034845,7]
[367047423,1750636242953,-490.0,0.00034845,7]
[367047425,1750636242962,-490.0,0.00034845,7]
[367047428,1750636242972,-2721.25,0.00034845,7]
[367047430,1750636242981,-1851.47,0.00034845,7]
[367047431,1750636242991,-7732.65,0.00034845,7]
[367047432,1750636243000,-1372.36,0.00034845,7]
[367047433,1750636243010,-490.0,0.00034845,7]
[367047434,1750636243019,-490.0,0.00034845,7]
[367047435,1750636243028,-588.0,0.00034845,7]
[367047436,1750636243039,-603.85,0.00034845,7]
[367047437,1750636243048,-490.0,0.00034845,7]
[367047438,1750636243058,-490.0,0.00034845,7]
[367047439,1750636243070,-1229.95,0.00034845,7]
[367047440,1750636243080,-490.0,0.00034845,7]
[367047441,1750636243089,-490.0,0.00034845,7]
[367047442,1750636243099,-490.0,0.00034845,7]
[367047443,1750636243109,-536.93689959,0.00034845,7]
[367047444,1750636243118,-490.0,0.00034845,7]
[367047445,1750636243128,-490.0,0.00034845,7]
[367047446,1750636243137,-490.0,0.00034845,7]
[367047447,1750636243147,-490.0,0.00034845,7]
[367047448,1750636243157,-1904.42,0.00034845,7]
[367047449,1750636243166,-496.51119519,0.00034845,7]
[367047450,1750636243175,-490.0,0.00034845,7]
[367047451,1750636243185,-490.0,0.00034845,7]
[367047452,1750636243194,-490.0,0.00034845,7]
[367047454,1750636243203,-490.0,0.00034845,7]
[367047456,1750636243212,-490.0,0.00034845,7]
[367047458,1750636243222,-490.0,0.00034845,7]
[367047460,1750636243231,-944.26,0.00034845,7]
[367047461,1750636243240,-452.72305178,0.00034845,7]
[367047463,1750636243249,-490.0,0.00034845,7]
[367047465,1750636243258,-490.0,0.00034845,7]
[367047467,1750636243268,-490.0,0.00034845,7]
[367047469,1750636243277,-1911.53,0.00034845,7]
[367047471,1750636243286,-2289.07,0.00034845,7]
[367047473,1750636243295,-675.31,0.00034845,7]
[367047475,1750636243304,-490.0,0.00034845,7]
[367047477,1750636243313,-500.0,0.00034845,7]
[367047479,1750636243322,-490.0,0.00034845,7]
[367047481,1750636243331,-272.07970792,0.00034845,7]
[367047483,1750636243341,-490.0,0.00034845,7]
[367047486,1750636243350,-490.0,0.00034845,7]
[367047489,1750636243359,-490.0,0.00034845,7]
[367047491,1750636243368,-490.0,0.00034845,7]
[367047494,1750636243377,-2714.75,0.00034845,7]
[367047497,1750636243386,-935.77,0.00034845,7]
[367047500,1750636243396,-2327.13,0.00034845,7]
[367047503,1750636243405,-490.0,0.00034845,7]
[367047506,1750636243420,-490.0,0.00034845,7]
[367047510,1750636243430,-589.82,0.00034845,7]
[367047513,1750636243440,-822.27,0.00034845,7]
[367047515,1750636243450,-2778.3,0.00034845,7]
[367047519,1750636243459,-490.0,0.00034845,7]
[367047522,1750636243469,-490.0,0.00034845,7]
[367047524,1750636243478,-840.98,0.00034845,7]
[367047526,1750636243487,-490.0,0.00034845,7]
[367047528,1750636243497,-490.0,0.00034845,7]
[367047531,1750636243507,-2170.92,0.00034845,7]
[367047532,1750636243516,-490.0,0.00034845,7]
[367047535,1750636243526,-490.0,0.00034845,7]
[367047536,1750636243536,-1855.41,0.00034845,7]
[367047538,1750636243545,-490.0,0.00034845,7]
[367047541,1750636243555,-802.1,0.00034845,7]
[367047542,1750636243564,-588.46,0.00034845,7]
[367047544,1750636243574,-984.7,0.00034845,7]
[367047546,1750636243584,-490.0,0.00034845,7]
[367047548,1750636243593,-490.0,0.00034845,7]
[367047550,1750636243603,-490.0,0.00034845,7]
[367047552,1750636243612,-490.0,0.00034845,7]
[367047554,1750636243621,-490.0,0.00034845,7]
[367047556,1750636243631,-2066.52,0.00034845,7]
[367047558,1750636243641,-490.0,0.00034845,7]
[367047561,1750636243651,-490.0,0.00034845,7]
[367047562,1750636243660,-885.5,0.00034845,7]
[367047565,1750636243670,-490.0,0.00034845,7]
[367047567,1750636243679,-570.87,0.00034845,7]
[367047569,1750636243689,-490.0,0.00034845,7]
[367047571,1750636243698,-490.0,0.00034845,7]
[367047572,1750636243707,-1285.26,0.00034845,7]
[367047574,1750636243717,-982.32,0.00034845,7]
[367047576,1750636243726,-490.0,0.00034845,7]
[367047579,1750636243736,-490.0,0.00034845,7]
[367047581,1750636243746,-490.0,0.00034845,7]
[367047582,1750636243755,-1045.04,0.00034845,7]
[367047584,1750636243764,-490.0,0.00034845,7]
[367047586,1750636243774,-370.41518695,0.00034845,7]
[367047588,1750636243783,-490.0,0.00034845,7]
[367047590,1750636243792,-490.0,0.00034845,7]
[367047592,1750636243801,-490.0,0.00034845,7]
[367047594,1750636243810,-490.0,0.00034845,7]
[367047596,1750636243820,-490.0,0.00034845,7]
[367047598,1750636243830,-490.0,0.00034845,7]
[367047600,1750636243840,-1029.41,0.00034845,7]
[367047602,1750636243851,-490.0,0.00034845,7]
[367047604,1750636243860,-348.40089738,0.00034845,7]
[367047606,1750636243870,-490.0,0.00034845,7]
[367047609,1750636243883,-490.0,0.00034845,7]
[367047610,1750636243892,-688.35,0.00034845,7]
[367047613,1750636243901,-151.0,0.00034846,7]
[367047615,1750636243911,-500.0,0.00034847,7]
[367047616,1750636243922,-500.0,0.00034847,7]
[367047619,1750636243932,-500.0,0.00034847,7]
[367047620,1750636243941,-151.0,0.00034848,7]
[367047622,1750636243951,-151.0,0.00034848,7]
[367047624,1750636243961,-3937.01460476,0.00034853,2]
[367047626,1750636243970,-500.0,0.00034857,7]
[367047628,1750636243979,-500.0,0.00034857,7]
[367047630,1750636243988,-509.31486063,0.00034857,7]
[367047632,1750636243998,-19442.3244192,0.00034867,2]
[367047634,1750636244007,-500.0,0.00034873,3]
[367047636,1750636244016,-24566.9577532,0.00034877,2]
[367047638,1750636244025,-19442.3244192,0.00034877,2]
[367047640,1750636244034,-500.0,0.00034879,7]
[367047642,1750636244044,-500.0,0.00034879,7]
[367047644,1750636244054,-539.2,0.00034887,7]
[367047646,1750636244063,-1070.67,0.00034887,7]
[367047648,1750636244073,-490.0,0.00034887,7]
[367047650,1750636244082,-1979.19,0.00034887,7]
[367047652,1750636244091,-1109.66,0.00034887,7]
[367047654,1750636244101,-971.99,0.00034887,7]
[367047656,1750636244111,-1635.71,0.00034887,7]
[367047658,1750636244120,-1745.47,0.00034887,7]
[367047660,1750636244130,-490.0,0.00034887,7]
[367047662,1750636244140,-598.94,0.00034887,7]
[367047664,1750636244149,-1970.2,0.00034887,7]
[367047666,1750636244160,-1980.0,0.00034887,7]
[367047668,1750636244169,-3259.94,0.00034887,7]
[367047670,1750636244179,-778.22,0.00034887,7]
[367047672,1750636244188,-1581.18,0.00034887,7]
[367047674,1750636244198,-222.65,0.00034887,7]
[367047676,1750636244208,-2157.88,0.00034887,7]
[367047704,1750636244470,-1954.69,0.00034887,7]
[367047706,1750636244480,-490.0,0.00034887,7]
[367047708,1750636244489,-2975.19,0.00034887,7]
[367047710,1750636244499,-1727.05,0.00034887,7]
[367047712,1750636244508,-490.0,0.00034887,7]
[367047714,1750636244517,-1024.33,0.00034887,7]
[367047715,1750636244526,-490.0,0.00034887,7]
[367047717,1750636244535,-300.0,0.00034887,7]
[367047719,1750636244545,-1751.56,0.00034887,7]
[367047721,1750636244554,-2015.05,0.00034887,7]
[367047723,1750636244564,-490.0,0.00034887,7]
[367047725,1750636244574,-1079.51,0.00034887,7]
[367047727,1750636244583,-500.0,0.00034887,7]
[367047729,1750636244592,-894.94,0.00034887,7]
[367047731,1750636244602,-1374.63,0.00034887,7]
[367047733,1750636244611,-512.55,0.00034887,7]
[367047735,1750636244621,-2636.92,0.00034887,7]
[367047737,1750636244630,-2628.06,0.00034887,7]
[367047739,1750636244640,-1398.73,0.00034887,7]
[367047741,1750636244649,-490.0,0.00034887,7]
[367047743,1750636244659,-1526.53,0.00034887,7]
[367047745,1750636244669,-1884.22,0.00034887,7]
[367047747,1750636244678,-490.0,0.00034887,7]
[367047748,1750636244687,-1898.03,0.00034887,7]
[367047750,1750636244698,-1888.55,0.00034887,7]
[367047752,1750636244710,-490.0,0.00034887,7]
[367047754,1750636244720,-150.14,0.0003489,2]
[367047756,1750636244730,-401.26,0.0003489,7]
[367047758,1750636244739,-500.0,0.0003489,7]
[367047760,1750636244749,-24566.9577532,0.0003489,2]
[367047763,1750636244759,-58326.9732577,0.0003489,2]
[367047764,1750636244768,-500.0,0.0003489,7]
[367047767,1750636244778,-500.0,0.00034897,7]
[367047769,1750636244787,-490.0,0.000349,7]
[367047771,1750636244797,-842.28,0.000349,7]
[367047773,1750636244807,-490.0,0.000349,7]
[367047775,1750636244818,-490.0,0.000349,7]
[367047776,1750636244828,-500.0,0.000349,7]
[367047778,1750636244838,-1126.04,0.000349,7]
[367047780,1750636244849,-490.0,0.000349,7]
[367047782,1750636244859,-530.74,0.000349,7]
[367047784,1750636244868,-681.22,0.000349,7]
[367047786,1750636244883,-1760.99,0.000349,7]
[367047788,1750636244892,-490.0,0.000349,7]
[367047790,1750636244903,-490.0,0.000349,7]
[367047792,1750636244913,-490.0,0.000349,7]
[367047794,1750636244924,-795.56,0.000349,7]
[367047796,1750636244933,-1925.1,0.000349,7]
[367047798,1750636244943,-490.0,0.000349,7]
[367047800,1750636244953,-490.0,0.000349,7]
[367047802,1750636244963,-490.0,0.000349,7]
[367047804,1750636244973,-34567.33,0.000349,7]
[367047806,1750636244983,-490.0,0.000349,7]
[367047808,1750636244993,-631.86054962,0.000349,7]
[367047810,1750636245003,-607.53,0.000349,7]
[367047812,1750636245012,-490.0,0.000349,7]
[367047814,1750636245022,-538.6,0.000349,7]
[367047816,1750636245031,-1570.65,0.000349,7]
[367047818,1750636245041,-490.0,0.000349,7]
[367047820,1750636245051,-5571.07,0.000349,7]
[367047822,1750636245061,-490.0,0.000349,7]
[367047824,1750636245073,-490.0,0.000349,7]
[367047826,1750636245082,-1528.04,0.000349,7]
[367047828,1750636245092,-2214.53,0.000349,7]
[367047829,1750636245102,-490.0,0.000349,7]
[367047831,1750636245112,-500.0,0.000349,7]
[367047833,1750636245121,-490.0,0.000349,7]
[367047835,1750636245131,-490.0,0.000349,7]
[367047837,1750636245140,-490.0,0.000349,7]
[367047839,1750636245150,-490.0,0.000349,7]
[367047841,1750636245160,-490.0,0.000349,7]
[367047843,1750636245169,-490.0,0.000349,7]
[367047845,1750636245179,-1021.82,0.000349,7]
[367047847,1750636245189,-794.07,0.000349,7]
[367047849,1750636245198,-1914.35,0.000349,7]
[367047851,1750636245208,-3913.66,0.000349,7]
[367047853,1750636245218,-490.0,0.000349,7]
[367047855,1750636245227,-494.81744311,0.000349,7]
[367047857,1750636245237,-8136.12,0.000349,7]
[367047859,1750636245247,-490.0,0.000349,7]
[367047861,1750636245256,-490.0,0.000349,7]
[367047863,1750636245265,-490.0,0.000349,7]
[367047865,1750636245275,-672.51,0.000349,7]
[367047867,1750636245285,-490.0,0.000349,7]
[367047869,1750636245295,-1413.97,0.000349,7]
[367047871,1750636245305,-490.0,0.000349,7]
[367047873,1750636245315,-490.0,0.000349,7]
[367047875,1750636245325,-490.0,0.000349,7]
[367047877,1750636245335,-490.0,0.000349,7]
[367047879,1750636245345,-490.0,0.000349,7]
[367047881,1750636245355,-913.83,0.000349,7]
[367047883,1750636245364,-931.16,0.000349,7]
[367047885,1750636245374,-11370.36,0.000349,7]
[367047887,1750636245384,-342.09144923,0.000349,7]
[367047889,1750636245393,-490.0,0.000349,7]
[367047891,1750636245403,-490.0,0.000349,7]
[367047893,1750636245414,-2423.76,0.000349,7]
[367047895,1750636245424,-490.0,0.000349,7]
[367047897,1750636245433,-490.0,0.000349,7]
[367047899,1750636245443,-503.07203056,0.000349,7]
[367047901,1750636245453,-490.0,0.000349,7]
[367047903,1750636245462,-1986.77,0.000349,7]
[367047905,1750636245472,-490.0,0.000349,7]
[367047907,1750636245482,-756.67,0.000349,7]
[367047909,1750636245492,-716.35331482,0.000349,2]
[367047911,1750636245502,-716.35331466,0.000349,2]
[367047914,1750636245512,-490.0,0.000349,7]
[367047917,1750636245522,-716.35331466,0.000349,2]
[367047919,1750636245531,-490.0,0.000349,7]
[367047921,1750636245541,-716.35331466,0.000349,2]
[367047923,1750636245551,-1705.07,0.000349,7]
[367047925,1750636245561,-490.0,0.000349,7]
[367047927,1750636245571,-716.35331466,0.000349,2]
[367047929,1750636245582,-716.35331466,0.000349,2]
[367047931,1750636245592,-490.0,0.000349,7]
[367047933,1750636245602,-716.35331466,0.000349,2]
[367047935,1750636245612,-490.0,0.000349,7]
[367047936,1750636245621,-17135.56,0.000349,7]
[367047937,1750636245631,-490.0,0.000349,7]
[367047938,1750636245641,-490.0,0.000349,7]
[367047939,1750636245651,-2081.38,0.000349,7]
[367047940,1750636245660,-490.0,0.000349,7]
[367047941,1750636245670,-500.0,0.00034909,7]
[367047942,1750636245679,-500.0,0.00034909,7]
[367047943,1750636245689,-500.0,0.0003491,7]
[367047945,1750636245699,-500.0,0.0003491,7]
[367047947,1750636245708,-716.35331466,0.00034916,2]
[367047949,1750636245719,-500.0,0.00034936,7]
[367047952,1750636245729,-2110.0,0.00034938,2]
[367047954,1750636245740,-716.35331466,0.00034943,2]
[367047956,1750636245749,-1055.17,0.00034945,7]
[367047958,1750636245759,-520.74,0.00034945,7]
[367047960,1750636245769,-1076.37,0.00034945,7]
[367047962,1750636245779,-1514.78,0.00034945,7]
[367047963,1750636245788,-1423.28,0.00034945,7]
[367047965,1750636245797,-1655.17,0.00034945,7]
[367047967,1750636245807,-1457.21,0.00034945,7]
[367047969,1750636245817,-490.0,0.00034945,7]
[367047972,1750636245827,-963.5,0.00034945,7]
[367047973,1750636245837,-614.8,0.00034945,7]
[367047976,1750636245846,-490.0,0.00034945,7]
[367047977,1750636245856,-19442.3244192,0.0003495,2]
[367047980,1750636245866,-150.0,0.00034957,2]
[367047982,1750636245878,-500.0,0.0003496,7]
[367047984,1750636245888,-24566.9577532,0.0003496,2]
[367047986,1750636245897,-500.0,0.0003497,7]
[367047988,1750636245907,-1000.0,0.0003497,120]
[367047990,1750636245917,-716.35331466,0.0003497,2]
[367047992,1750636245928,-3937.01460476,0.00034971,2]
[367047994,1750636245938,-500.0,0.00034988,7]
[367047996,1750636245949,-500.0,0.00034989,7]
[367047998,1750636245959,-500.0,0.00034989,7]
[367048000,1750636245968,-1000.0,0.00034997,120]
[367048002,1750636245977,-716.35331466,0.00034998,2]
[367048004,1750636245987,-500.0,0.00034999,7]
[367048006,1750636245996,-500.0,0.00034999,7]
[367048008,1750636246006,-715.252387,0.00035,120]
[367048010,1750636246015,-2000.0,0.00035,2]
[367048012,1750636246025,-2000.0,0.00035,2]
[367048014,1750636246035,-2000.0,0.00035,2]
[367048016,1750636246044,-2000.0,0.00035,2]
[367048018,1750636246054,-2000.0,0.00035,2]
[367048020,1750636246063,-2000.0,0.00035,2]
[367048022,1750636246073,-1000.0,0.00035024,120]
[367048024,1750636246083,-716.35331466,0.00035025,2]
[367048026,1750636246093,-336.13,0.00035044,2]
[367048028,1750636246102,-716.35331466,0.00035052,2]
[367048030,1750636246112,-1000.0,0.00035052,120]
[367048032,1750636246122,-187.39944004,0.00035066,15]
[367048034,1750636246132,-716.35331466,0.00035079,2]
[367048036,1750636246141,-1000.0,0.00035079,120]
[367048038,1750636246152,-3937.01460476,0.00035088,2]
[367048040,1750636246161,-19442.3244192,0.00035091,2]
[367048042,1750636246170,-19442.3244192,0.00035094,2]
[367048044,1750636246180,-19442.3244192,0.00035097,2]
[367048046,1750636246189,-19442.3244192,0.00035099,2]
[367048048,1750636246199,-24566.9577532,0.00035101,2]
[367048050,1750636246208,-38884.6488385,0.00035101,2]
[367048052,1750636246218,-49133.9155063,0.00035104,2]
[367048054,1750636246228,-38884.6488385,0.00035104,2]
[367048056,1750636246238,-24566.9577532,0.00035107,2]
[367048058,1750636246247,-19442.3244192,0.00035107,2]
[367048060,1750636246257,-1000.0,0.00035107,120]
[367048062,1750636246267,-49133.9155063,0.00035109,2]
[367048064,1750636246279,-58326.9732577,0.00035109,2]
[367048066,1750636246288,-516.74,0.00035109,7]
[367048068,1750636246297,-490.0,0.00035109,7]
[367048070,1750636246307,-490.0,0.00035109,7]
[367048072,1750636246316,-490.0,0.00035109,7]
[367048075,1750636246327,-490.0,0.00035109,7]
[367048077,1750636246336,-1824.12,0.00035109,7]
[367048079,1750636246345,-228.91340337,0.00035109,7]
[367048081,1750636246355,-1826.87,0.00035109,7]
[367048083,1750636246364,-353.7208241,0.00035109,7]
[367048085,1750636246374,-490.0,0.00035109,2]
[367048087,1750636246383,-221.46728372,0.0003511,7]
[367048089,1750636246393,-604.43,0.0003511,7]
[367048091,1750636246402,-1811.99,0.0003511,7]
[367048094,1750636246412,-903.01,0.0003511,7]
[367048096,1750636246421,-1942.6,0.0003511,7]
[367048098,1750636246431,-4797.05,0.0003511,7]
[367048100,1750636246440,-1940.27,0.0003511,7]
[367048102,1750636246450,-490.0,0.0003511,7]
[367048104,1750636246460,-236.51485456,0.0003511,7]
[367048106,1750636246470,-766.28,0.0003511,7]
[367048108,1750636246480,-1979.23,0.0003511,7]
[367048110,1750636246489,-490.0,0.0003511,7]
[367048112,1750636246499,-1837.74,0.0003511,7]
[367048114,1750636246508,-1327.75,0.0003511,7]
[367048116,1750636246518,-2014.21,0.0003511,7]
[367048118,1750636246527,-2339.71,0.0003511,7]
[367048120,1750636246536,-655.85,0.0003511,7]
[367048122,1750636246545,-1719.44,0.0003511,7]
[367048124,1750636246554,-490.0,0.0003511,7]
[367048126,1750636246564,-490.0,0.0003511,7]
[367048128,1750636246574,-1358.04,0.0003511,7]
[367048130,1750636246583,-1027.73,0.0003511,7]
[367048132,1750636246592,-2365.88,0.0003511,7]
[367048134,1750636246602,-3488.8,0.0003511,7]
[367048136,1750636246611,-5072.14,0.0003511,7]
[367048138,1750636246621,-490.0,0.00035111,7]
[367048140,1750636246630,-901.26,0.00035111,7]
[367048142,1750636246640,-490.0,0.00035111,7]
[367048144,1750636246649,-490.0,0.00035111,7]
[367048146,1750636246659,-992.25,0.00035111,7]
[367048148,1750636246668,-490.0,0.00035111,7]
[367048150,1750636246678,-1005.91,0.00035111,7]
[367048152,1750636246687,-490.0,0.00035111,7]
[367048154,1750636246697,-815.86,0.00035111,7]
[367048156,1750636246707,-490.0,0.00035111,7]
[367048158,1750636246718,-490.0,0.00035111,7]
[367048160,1750636246728,-487.55,0.00035111,7]
[367048162,1750636246737,-490.0,0.00035111,7]
[367048164,1750636246747,-733.83,0.00035111,7]
[367048166,1750636246757,-490.0,0.00035111,7]
[367048168,1750636246767,-490.0,0.00035111,7]
[367048170,1750636246776,-762.96,0.00035111,7]
[367048179,1750636246859,-490.0,0.00035111,7]
[367048181,1750636246869,-1082.99,0.00035111,7]
[367048183,1750636246882,-623.15,0.00035111,7]
[367048185,1750636246892,-490.0,0.00035111,7]
[367048187,1750636246901,-704.52,0.00035111,7]